[Event "Late-Titled-Tuesday-Blitz-February-06-2024"]
[Site "Chess.com"]
[Date "2024.02.06"]
[Round "11"]
[White "mishanick"]
[Black "GMKrikor"]
[Result "1-0"]
[WhiteElo "3041"]
[BlackElo "2845"]
[TimeControl "180+1"]
[EndTime "16:02:53 PST"]
[Termination "mishanick won by checkmate"]

1. c4 {[%clk 0:03:00.9]} 1... c5 {[%clk 0:02:58.9]} 2. Nf3 {[%clk 0:03:00.4]}
2... Nc6 {[%clk 0:02:59.2]} 3. d4 {[%clk 0:02:59.7]} 3... cxd4 {[%clk
0:02:58.4]} 4. Nxd4 {[%clk 0:03:00.6]} 4... Nf6 {[%clk 0:02:51.8]} 5. Nc3 {[%clk
0:03:00.9]} 5... e6 {[%clk 0:02:52.4]} 6. e4 {[%clk 0:03:01.4]} 6... Bb4 {[%clk
0:02:48.1]} 7. Nxc6 {[%clk 0:03:01.8]} 7... dxc6 {[%clk 0:02:27.3]} 8. Qxd8+
{[%clk 0:03:02.7]} 8... Kxd8 {[%clk 0:02:28]} 9. e5 {[%clk 0:03:00.3]} 9... Ne4
{[%clk 0:02:19.9]} 10. a3 {[%clk 0:02:55.9]} 10... Bxc3+ {[%clk 0:01:56.1]} 11.
bxc3 {[%clk 0:02:55.9]} 11... Kc7 {[%clk 0:01:41.8]} 12. f3 {[%clk 0:02:45]}
12... Nc5 {[%clk 0:01:41.6]} 13. Be3 {[%clk 0:02:44.4]} 13... b6 {[%clk
0:01:41.7]} 14. h4 {[%clk 0:02:44.3]} 14... h5 {[%clk 0:01:39.4]} 15. Rh3 {[%clk
0:02:44.6]} 15... Ba6 {[%clk 0:01:34.9]} 16. Rg3 {[%clk 0:02:38.1]} 16... g6
{[%clk 0:01:35]} 17. Bg5 {[%clk 0:02:38.2]} 17... Nb3 {[%clk 0:01:12.3]} 18. Rd1
{[%clk 0:02:33.4]} 18... c5 {[%clk 0:01:03.4]} 19. Bf6 {[%clk 0:02:24.5]} 19...
Rhg8 {[%clk 0:00:59.5]} 20. Rg5 {[%clk 0:02:23.6]} 20... Na5 {[%clk 0:00:56.9]}
21. g4 {[%clk 0:02:24.2]} 21... Bxc4 {[%clk 0:00:26.8]} 22. gxh5 {[%clk
0:02:24]} 22... gxh5 {[%clk 0:00:26.8]} 23. Rxh5 {[%clk 0:02:23.9]} 23... Bxf1
{[%clk 0:00:20.6]} 24. Kxf1 {[%clk 0:02:24.1]} 24... Nc4 {[%clk 0:00:21.3]} 25.
Kf2 {[%clk 0:02:17.9]} 25... Rg6 {[%clk 0:00:08.7]} 26. Rh7 {[%clk 0:02:15.9]}
26... Rag8 {[%clk 0:00:08.7]} 27. Rxf7+ {[%clk 0:02:16.2]} 27... Kc6 {[%clk
0:00:09]} 28. Bg5 {[%clk 0:02:15.7]} 28... Nxe5 {[%clk 0:00:08.1]} 29. Rxa7
{[%clk 0:02:12.5]} 29... Rf8 {[%clk 0:00:08.5]} 30. f4 {[%clk 0:02:12.2]} 30...
Nc4 {[%clk 0:00:03.5]} 31. a4 {[%clk 0:01:58.5]} 31... e5 {[%clk 0:00:03.5]} 32.
Rdd7 {[%clk 0:01:59.2]} 32... exf4 {[%clk 0:00:03]} 33. Rac7# {[%clk 0:01:58.7]}
1-0

[Event "Late-Titled-Tuesday-Blitz-February-06-2024"]
[Site "Chess.com"]
[Date "2024.02.06"]
[Round "11"]
[White "lluiss"]
[Black "Ready4abattle"]
[Result "0-1"]
[WhiteElo "2152"]
[BlackElo "2307"]
[TimeControl "180+1"]
[EndTime "16:02:53 PST"]
[Termination "Ready4abattle won by resignation"]

1. e4 {[%clk 0:02:59.2]} 1... c5 {[%clk 0:02:59.5]} 2. Nf3 {[%clk 0:02:58.2]}
2... Nc6 {[%clk 0:02:58.5]} 3. d4 {[%clk 0:02:58]} 3... cxd4 {[%clk 0:02:59.4]}
4. Nxd4 {[%clk 0:02:57.8]} 4... e5 {[%clk 0:02:59.8]} 5. Nxc6 {[%clk 0:02:56.5]}
5... bxc6 {[%clk 0:02:59.8]} 6. Bc4 {[%clk 0:02:56]} 6... Nf6 {[%clk 0:02:59.9]}
7. Bg5 {[%clk 0:02:49.9]} 7... h6 {[%clk 0:02:54.7]} 8. Bxf6 {[%clk 0:02:48.9]}
8... Qxf6 {[%clk 0:02:55.6]} 9. O-O {[%clk 0:02:48]} 9... Bc5 {[%clk 0:02:52.8]}
10. Nc3 {[%clk 0:02:43.4]} 10... O-O {[%clk 0:02:50.4]} 11. Na4 {[%clk
0:02:43.2]} 11... Be7 {[%clk 0:02:48.1]} 12. a3 {[%clk 0:02:25]} 12... d6 {[%clk
0:02:47.5]} 13. Nc3 {[%clk 0:02:23.2]} 13... Qg6 {[%clk 0:02:43.5]} 14. Kh1
{[%clk 0:02:18.4]} 14... Rb8 {[%clk 0:02:39.7]} 15. b3 {[%clk 0:02:11.1]} 15...
Bg4 {[%clk 0:02:28.4]} 16. f3 {[%clk 0:02:10.4]} 16... Be6 {[%clk 0:02:28.7]}
17. Qe2 {[%clk 0:02:09.9]} 17... Rbd8 {[%clk 0:02:25.1]} 18. Rad1 {[%clk
0:02:07.2]} 18... Kh8 {[%clk 0:02:20.9]} 19. Bxe6 {[%clk 0:02:05.4]} 19... Qxe6
{[%clk 0:02:16.4]} 20. Qa6 {[%clk 0:02:05.2]} 20... Qd7 {[%clk 0:02:13.1]} 21.
Rd3 {[%clk 0:02:00.7]} 21... Qc7 {[%clk 0:02:12.7]} 22. Rfd1 {[%clk 0:01:58.5]}
22... f5 {[%clk 0:02:13]} 23. b4 {[%clk 0:01:41]} 23... fxe4 {[%clk 0:02:05.5]}
24. Nxe4 {[%clk 0:01:40.1]} 24... d5 {[%clk 0:02:04.1]} 25. Nc5 {[%clk
0:01:40.2]} 25... Bxc5 {[%clk 0:02:03.6]} 26. bxc5 {[%clk 0:01:40.2]} 26... Rde8
{[%clk 0:01:56.6]} 27. Rb3 {[%clk 0:01:38.3]} 27... e4 {[%clk 0:01:55]} 28. Rb7
{[%clk 0:01:23.7]} 28... Qe5 {[%clk 0:01:49.2]} 29. Qxc6 {[%clk 0:01:21.1]}
29... exf3 {[%clk 0:01:20]} 30. gxf3 {[%clk 0:01:20]} 30... Rxf3 {[%clk
0:01:17.6]} 31. Qxd5 {[%clk 0:01:16.7]} 31... Rf1+ {[%clk 0:01:09.7]} 32. Kg2
{[%clk 0:00:57]} 32... Qe2+ {[%clk 0:01:09.8]} 0-1

[Event "Late-Titled-Tuesday-Blitz-February-06-2024"]
[Site "Chess.com"]
[Date "2024.02.06"]
[Round "11"]
[White "frequentblunders"]
[Black "CFalcons8"]
[Result "0-1"]
[WhiteElo "2156"]
[BlackElo "2348"]
[TimeControl "180+1"]
[EndTime "16:03:00 PST"]
[Termination "CFalcons8 won on time"]

1. d3 {[%clk 0:02:36.3]} 1... e6 {[%clk 0:03:00.8]} 2. Nf3 {[%clk 0:02:35.8]}
2... d5 {[%clk 0:03:01.7]} 3. g3 {[%clk 0:02:35.7]} 3... Nf6 {[%clk 0:03:02.2]}
4. Bg2 {[%clk 0:02:36]} 4... Bd6 {[%clk 0:03:03]} 5. O-O {[%clk 0:02:29]} 5...
O-O {[%clk 0:03:03.6]} 6. Nbd2 {[%clk 0:02:27.5]} 6... b6 {[%clk 0:03:04.1]} 7.
e4 {[%clk 0:02:23]} 7... dxe4 {[%clk 0:03:05]} 8. Nxe4 {[%clk 0:02:17.2]} 8...
Nxe4 {[%clk 0:03:05]} 9. dxe4 {[%clk 0:02:17.3]} 9... e5 {[%clk 0:03:05.9]} 10.
Be3 {[%clk 0:02:04.5]} 10... Bb7 {[%clk 0:03:06.1]} 11. Nd2 {[%clk 0:01:56.1]}
11... Qe7 {[%clk 0:03:00.6]} 12. Nc4 {[%clk 0:01:47.9]} 12... Bc5 {[%clk
0:03:00.2]} 13. Qe2 {[%clk 0:01:27.4]} 13... Nd7 {[%clk 0:02:57.4]} 14. Rad1
{[%clk 0:01:16.9]} 14... Bxe3 {[%clk 0:02:56.4]} 15. Nxe3 {[%clk 0:00:54.8]}
15... g6 {[%clk 0:02:55.8]} 16. Nd5 {[%clk 0:00:52.3]} 16... Bxd5 {[%clk
0:02:54.5]} 17. exd5 {[%clk 0:00:47.3]} 17... Qd6 {[%clk 0:02:53.4]} 18. c4
{[%clk 0:00:37.7]} 18... f5 {[%clk 0:02:53.6]} 19. Rfe1 {[%clk 0:00:36.8]} 19...
a5 {[%clk 0:02:53.3]} 20. a3 {[%clk 0:00:32.3]} 20... Rae8 {[%clk 0:02:52.9]}
21. Qc2 {[%clk 0:00:31.7]} 21... e4 {[%clk 0:02:50.5]} 22. Qc3 {[%clk
0:00:31.4]} 22... Qe5 {[%clk 0:02:48.9]} 23. Qxe5 {[%clk 0:00:26.3]} 23... Nxe5
{[%clk 0:02:49.8]} 24. Rd4 {[%clk 0:00:23.8]} 24... Nd3 {[%clk 0:02:49.2]} 25.
Re2 {[%clk 0:00:19.8]} 25... a4 {[%clk 0:02:47.6]} 26. Rd2 {[%clk 0:00:15.6]}
26... Nc5 {[%clk 0:02:46.6]} 27. Re2 {[%clk 0:00:11.6]} 27... Nb3 {[%clk
0:02:44.5]} 28. Rd1 {[%clk 0:00:10]} 28... Na5 {[%clk 0:02:36.4]} 29. Rc2 {[%clk
0:00:08.9]} 29... Rd8 {[%clk 0:02:19.8]} 30. Bf1 {[%clk 0:00:07.4]} 30... c6
{[%clk 0:02:09.4]} 31. d6 {[%clk 0:00:04.2]} 31... c5 {[%clk 0:02:07.3]} 32.
Rcd2 {[%clk 0:00:01.4]} 32... Rd7 {[%clk 0:02:06.3]} 0-1

[Event "Late-Titled-Tuesday-Blitz-February-06-2024"]
[Site "Chess.com"]
[Date "2024.02.06"]
[Round "11"]
[White "BelaKis"]
[Black "Bala-Afiada"]
[Result "1-0"]
[WhiteElo "2227"]
[BlackElo "2027"]
[TimeControl "180+1"]
[EndTime "16:03:09 PST"]
[Termination "BelaKis won on time"]

1. d4 {[%clk 0:02:59]} 1... Nf6 {[%clk 0:02:52.9]} 2. c4 {[%clk 0:02:59.5]} 2...
e6 {[%clk 0:02:51.1]} 3. a3 {[%clk 0:02:59.9]} 3... d5 {[%clk 0:02:51.5]} 4. Nc3
{[%clk 0:02:58.4]} 4... c6 {[%clk 0:02:51.1]} 5. e3 {[%clk 0:02:57.9]} 5... Bd6
{[%clk 0:02:51.2]} 6. Nf3 {[%clk 0:02:53.6]} 6... O-O {[%clk 0:02:49.5]} 7. Bd3
{[%clk 0:02:42.2]} 7... dxc4 {[%clk 0:02:49]} 8. Bxc4 {[%clk 0:02:42.4]} 8... b5
{[%clk 0:02:48.9]} 9. Bd3 {[%clk 0:02:42.8]} 9... Bb7 {[%clk 0:02:49.2]} 10. e4
{[%clk 0:02:43.3]} 10... Be7 {[%clk 0:02:47.9]} 11. e5 {[%clk 0:02:43.5]} 11...
Nd5 {[%clk 0:02:48]} 12. h4 {[%clk 0:02:44]} 12... a6 {[%clk 0:02:43.7]} 13.
Bxh7+ {[%clk 0:02:43.3]} 13... Kh8 {[%clk 0:00:40.5]} 14. Bc2 {[%clk 0:02:17.6]}
14... f5 {[%clk 0:00:35.9]} 15. exf6 {[%clk 0:02:13.4]} 15... Nxf6 {[%clk
0:00:33.6]} 16. Ng5 {[%clk 0:02:07.6]} 16... c5 {[%clk 0:00:28.1]} 17. Nxe6
{[%clk 0:01:39.4]} 17... Qd7 {[%clk 0:00:24.6]} 18. Nxf8 {[%clk 0:01:35.2]}
18... Bxf8 {[%clk 0:00:25.5]} 19. dxc5 {[%clk 0:01:34.3]} 19... Bxg2 {[%clk
0:00:21.7]} 20. Qxd7 {[%clk 0:01:32.7]} 20... Nbxd7 {[%clk 0:00:21.1]} 21. Rg1
{[%clk 0:01:32.1]} 21... Bf3 {[%clk 0:00:19.2]} 22. Be3 {[%clk 0:01:31.6]} 22...
Re8 {[%clk 0:00:19.1]} 23. Kd2 {[%clk 0:01:31.8]} 23... Nxc5 {[%clk 0:00:16.4]}
24. Rae1 {[%clk 0:01:30.2]} 24... Rd8+ {[%clk 0:00:10.3]} 25. Kc1 {[%clk
0:01:30.3]} 25... Be7 {[%clk 0:00:04.8]} 26. Bg5 {[%clk 0:01:29.2]} 1-0

[Event "Late-Titled-Tuesday-Blitz-February-06-2024"]
[Site "Chess.com"]
[Date "2024.02.06"]
[Round "11"]
[White "SocoLoco"]
[Black "smotherhubbard"]
[Result "0-1"]
[WhiteElo "2164"]
[BlackElo "2324"]
[TimeControl "180+1"]
[EndTime "16:03:11 PST"]
[Termination "smotherhubbard won by checkmate"]

1. e4 {[%clk 0:03:00.9]} 1... e6 {[%clk 0:03:00.2]} 2. d4 {[%clk 0:02:57.8]}
2... d5 {[%clk 0:03:00.8]} 3. exd5 {[%clk 0:02:55.6]} 3... exd5 {[%clk
0:03:00.8]} 4. Nc3 {[%clk 0:02:56.1]} 4... Nf6 {[%clk 0:03:00.8]} 5. Nf3 {[%clk
0:02:56.3]} 5... Bb4 {[%clk 0:03:01.2]} 6. Be2 {[%clk 0:02:56.4]} 6... O-O
{[%clk 0:03:01.7]} 7. O-O {[%clk 0:02:56.6]} 7... Re8 {[%clk 0:03:02]} 8. h3
{[%clk 0:02:56.4]} 8... Bxc3 {[%clk 0:03:00.9]} 9. bxc3 {[%clk 0:02:55.6]} 9...
Ne4 {[%clk 0:03:01.5]} 10. c4 {[%clk 0:02:52.9]} 10... Nc3 {[%clk 0:03:01.1]}
11. Qd3 {[%clk 0:02:39.1]} 11... Nxe2+ {[%clk 0:03:00.9]} 12. Kh1 {[%clk
0:02:38]} 12... Nxc1 {[%clk 0:02:58.6]} 13. Raxc1 {[%clk 0:02:37.5]} 13... Nc6
{[%clk 0:02:56]} 14. cxd5 {[%clk 0:02:36.5]} 14... Qxd5 {[%clk 0:02:54.6]} 15.
c4 {[%clk 0:02:37]} 15... Qh5 {[%clk 0:02:47.1]} 16. d5 {[%clk 0:02:33.4]} 16...
Ne7 {[%clk 0:02:39.6]} 17. Rfd1 {[%clk 0:02:13.1]} 17... Ng6 {[%clk 0:02:34.4]}
18. Nd4 {[%clk 0:02:02.5]} 18... Bd7 {[%clk 0:02:20.9]} 19. Qf3 {[%clk
0:01:42.8]} 19... Qxf3 {[%clk 0:02:15.8]} 20. Nxf3 {[%clk 0:01:43.3]} 20... Re2
{[%clk 0:02:13.7]} 21. c5 {[%clk 0:01:28.1]} 21... Rxf2 {[%clk 0:02:05.4]} 22.
Rb1 {[%clk 0:01:23.2]} 22... b6 {[%clk 0:02:00.6]} 23. c6 {[%clk 0:01:22.2]}
23... Bf5 {[%clk 0:01:49.5]} 24. Rbc1 {[%clk 0:01:13.4]} 24... Nf4 {[%clk
0:01:28.5]} 25. Nd4 {[%clk 0:00:57.3]} 25... Be4 {[%clk 0:01:21]} 26. Nb5 {[%clk
0:00:37.2]} 26... Rxg2 {[%clk 0:01:16]} 27. Nxc7 {[%clk 0:00:29.9]} 27... Rf2+
{[%clk 0:01:02.4]} 28. Kg1 {[%clk 0:00:29.4]} 28... Nxh3# {[%clk 0:01:02.8]} 0-1

[Event "Late-Titled-Tuesday-Blitz-February-06-2024"]
[Site "Chess.com"]
[Date "2024.02.06"]
[Round "11"]
[White "RantomOpening"]
[Black "wild3000"]
[Result "1-0"]
[WhiteElo "2508"]
[BlackElo "2366"]
[TimeControl "180+1"]
[EndTime "16:03:17 PST"]
[Termination "RantomOpening won on time"]

1. e4 {[%clk 0:02:59.8]} 1... a6 {[%clk 0:02:59.5]} 2. c4 {[%clk 0:02:58.4]}
2... c5 {[%clk 0:02:58.7]} 3. Nf3 {[%clk 0:02:57.1]} 3... e6 {[%clk 0:02:55.4]}
4. b3 {[%clk 0:02:57.3]} 4... d5 {[%clk 0:02:50.5]} 5. Nc3 {[%clk 0:02:54.4]}
5... d4 {[%clk 0:02:48]} 6. Ne2 {[%clk 0:02:54.6]} 6... Nc6 {[%clk 0:02:46.6]}
7. Ng3 {[%clk 0:02:53.9]} 7... e5 {[%clk 0:02:45.6]} 8. d3 {[%clk 0:02:53.7]}
8... Nf6 {[%clk 0:02:30.9]} 9. Be2 {[%clk 0:02:54.1]} 9... Be7 {[%clk
0:02:30.7]} 10. O-O {[%clk 0:02:54.5]} 10... O-O {[%clk 0:02:30.7]} 11. a3
{[%clk 0:02:54.7]} 11... a5 {[%clk 0:02:30.3]} 12. Nh4 {[%clk 0:02:45.7]} 12...
Nxe4 {[%clk 0:02:09.8]} 13. Nxe4 {[%clk 0:02:46.6]} 13... Bxh4 {[%clk
0:02:09.6]} 14. Nxc5 {[%clk 0:02:47.1]} 14... Be7 {[%clk 0:02:09.2]} 15. Ne4
{[%clk 0:02:46.9]} 15... f5 {[%clk 0:02:09.2]} 16. Ng3 {[%clk 0:02:47.2]} 16...
Bd6 {[%clk 0:02:00.6]} 17. f4 {[%clk 0:02:46.4]} 17... Qc7 {[%clk 0:01:52.2]}
18. fxe5 {[%clk 0:02:43.9]} 18... Bxe5 {[%clk 0:01:52.4]} 19. Bf3 {[%clk
0:02:36.9]} 19... Bxg3 {[%clk 0:01:49]} 20. hxg3 {[%clk 0:02:37.8]} 20... Qxg3
{[%clk 0:01:48.3]} 21. Bf4 {[%clk 0:02:37.4]} 21... Qg6 {[%clk 0:01:47.6]} 22.
Re1 {[%clk 0:02:32.6]} 22... Bd7 {[%clk 0:01:47]} 23. Bh5 {[%clk 0:02:25.3]}
23... Qf6 {[%clk 0:01:44.9]} 24. Qf3 {[%clk 0:02:25.3]} 24... Be6 {[%clk
0:01:29.2]} 25. Qg3 {[%clk 0:02:21.9]} 25... Bf7 {[%clk 0:01:02.3]} 26. Bg5
{[%clk 0:02:14.5]} 26... f4 {[%clk 0:01:02.4]} 27. Qh4 {[%clk 0:02:06.3]} 27...
Qf5 {[%clk 0:00:58.9]} 28. Bg4 {[%clk 0:01:53.3]} 28... Qxd3 {[%clk 0:00:53.5]}
29. Rad1 {[%clk 0:01:53.5]} 29... Qxb3 {[%clk 0:00:49.7]} 30. Bf5 {[%clk
0:01:52.3]} 30... g6 {[%clk 0:00:30.7]} 31. Qh6 {[%clk 0:01:49.5]} 31... Be8
{[%clk 0:00:13.7]} 32. Be6+ {[%clk 0:01:48.7]} 32... Rf7 {[%clk 0:00:06.6]} 33.
Bf6 {[%clk 0:01:49]} 1-0

[Event "Late-Titled-Tuesday-Blitz-February-06-2024"]
[Site "Chess.com"]
[Date "2024.02.06"]
[Round "11"]
[White "K_A_S_T_O_R"]
[Black "HansOnTwitch"]
[Result "0-1"]
[WhiteElo "2871"]
[BlackElo "3135"]
[TimeControl "180+1"]
[EndTime "16:03:19 PST"]
[Termination "HansOnTwitch won by resignation"]

1. e4 {[%clk 0:03:00.9]} 1... c5 {[%clk 0:02:59]} 2. Nf3 {[%clk 0:02:58.7]} 2...
d6 {[%clk 0:02:56.8]} 3. d4 {[%clk 0:02:59]} 3... cxd4 {[%clk 0:02:57.3]} 4.
Nxd4 {[%clk 0:02:59.7]} 4... Nf6 {[%clk 0:02:57.9]} 5. Nc3 {[%clk 0:03:00.3]}
5... a6 {[%clk 0:02:58.6]} 6. Bg5 {[%clk 0:03:00.5]} 6... Nbd7 {[%clk
0:02:57.4]} 7. Bc4 {[%clk 0:03:00.1]} 7... Qb6 {[%clk 0:02:54.8]} 8. Bb3 {[%clk
0:03:00]} 8... e6 {[%clk 0:02:53.9]} 9. Bxf6 {[%clk 0:03:00.1]} 9... Nxf6 {[%clk
0:02:54]} 10. Qd2 {[%clk 0:03:00.7]} 10... Qc7 {[%clk 0:02:33.1]} 11. O-O-O
{[%clk 0:03:00.8]} 11... b5 {[%clk 0:02:33.2]} 12. a3 {[%clk 0:02:58.1]} 12...
Bb7 {[%clk 0:02:33.2]} 13. Rhe1 {[%clk 0:02:56.1]} 13... Be7 {[%clk 0:02:31.6]}
14. f4 {[%clk 0:02:55.9]} 14... O-O-O {[%clk 0:02:08.1]} 15. f5 {[%clk
0:02:52.1]} 15... e5 {[%clk 0:02:07.7]} 16. Nf3 {[%clk 0:02:50.1]} 16... Rhf8
{[%clk 0:01:44.9]} 17. Ng5 {[%clk 0:02:43.2]} 17... d5 {[%clk 0:01:44.9]} 18.
Nxd5 {[%clk 0:02:38.8]} 18... Nxd5 {[%clk 0:01:42.9]} 19. exd5 {[%clk
0:02:37.1]} 19... Bxg5 {[%clk 0:01:42.5]} 20. Qxg5 {[%clk 0:02:36.3]} 20... f6
{[%clk 0:01:43.2]} 21. Qe3 {[%clk 0:02:33.9]} 21... Rd6 {[%clk 0:01:43.2]} 22.
Rd2 {[%clk 0:02:33]} 22... Rfd8 {[%clk 0:01:40.9]} 23. Red1 {[%clk 0:02:33]}
23... Kb8 {[%clk 0:01:41.5]} 24. g4 {[%clk 0:02:31.7]} 24... Qd7 {[%clk
0:01:38.8]} 25. Qc5 {[%clk 0:02:21.7]} 25... Rc8 {[%clk 0:01:38.4]} 26. Qb4
{[%clk 0:02:21.8]} 26... Qc7 {[%clk 0:01:38.1]} 27. Rd3 {[%clk 0:02:20.3]} 27...
Qc5 {[%clk 0:01:38.1]} 28. Rc3 {[%clk 0:02:14.4]} 28... Qxb4 {[%clk 0:01:37.6]}
29. axb4 {[%clk 0:02:15]} 29... Rh8 {[%clk 0:01:28.3]} 30. h4 {[%clk 0:02:10.9]}
30... h5 {[%clk 0:01:26.4]} 31. Rg3 {[%clk 0:01:52.8]} 31... hxg4 {[%clk
0:01:22.6]} 32. Rxg4 {[%clk 0:01:53.2]} 32... Rh7 {[%clk 0:01:23.2]} 33. Kd2
{[%clk 0:01:45.1]} 33... Kc7 {[%clk 0:01:05.2]} 34. Ke3 {[%clk 0:01:44.9]} 34...
Rd7 {[%clk 0:01:05.8]} 35. Ba2 {[%clk 0:01:39.9]} 35... Kb6 {[%clk 0:00:52]} 36.
Ke4 {[%clk 0:01:35.6]} 36... a5 {[%clk 0:00:43.6]} 37. bxa5+ {[%clk 0:01:34.9]}
37... Kxa5 {[%clk 0:00:44.5]} 38. c3 {[%clk 0:01:35.5]} 38... Kb6 {[%clk
0:00:40.4]} 39. Rdg1 {[%clk 0:01:29.4]} 39... Kc5 {[%clk 0:00:39.3]} 40. b4+
{[%clk 0:01:27.3]} 40... Kd6 {[%clk 0:00:39.5]} 41. Rxg7 {[%clk 0:01:24.9]}
41... Rdxg7 {[%clk 0:00:38.9]} 0-1

[Event "Late-Titled-Tuesday-Blitz-February-06-2024"]
[Site "Chess.com"]
[Date "2024.02.06"]
[Round "11"]
[White "Adar_07"]
[Black "Nf3c5"]
[Result "1-0"]
[WhiteElo "2723"]
[BlackElo "2569"]
[TimeControl "180+1"]
[EndTime "16:03:41 PST"]
[Termination "Adar_07 won on time"]

1. e4 {[%clk 0:03:00.9]} 1... e5 {[%clk 0:02:56]} 2. Nf3 {[%clk 0:03:00.2]} 2...
d6 {[%clk 0:02:49.9]} 3. Nc3 {[%clk 0:02:56.3]} 3... Nf6 {[%clk 0:02:49.8]} 4.
Bc4 {[%clk 0:02:55.4]} 4... Be7 {[%clk 0:02:49.5]} 5. d4 {[%clk 0:02:54]} 5...
exd4 {[%clk 0:02:49.5]} 6. Nxd4 {[%clk 0:02:54.4]} 6... O-O {[%clk 0:02:50.1]}
7. Bb3 {[%clk 0:02:48.2]} 7... Re8 {[%clk 0:02:38.7]} 8. O-O {[%clk 0:02:45.9]}
8... Bf8 {[%clk 0:02:38.6]} 9. Bg5 {[%clk 0:02:45]} 9... h6 {[%clk 0:02:25.6]}
10. Bh4 {[%clk 0:02:43.7]} 10... Nc6 {[%clk 0:01:43.6]} 11. Re1 {[%clk
0:02:29.7]} 11... Nxd4 {[%clk 0:01:38.4]} 12. Qxd4 {[%clk 0:02:30.6]} 12... Be7
{[%clk 0:01:38.8]} 13. Rad1 {[%clk 0:02:28.1]} 13... c6 {[%clk 0:01:35.4]} 14.
e5 {[%clk 0:02:23.4]} 14... dxe5 {[%clk 0:01:29]} 15. Qxe5 {[%clk 0:02:04.5]}
15... Bd7 {[%clk 0:01:21]} 16. Qf4 {[%clk 0:01:56.8]} 16... g5 {[%clk
0:01:13.4]} 17. Bxg5 {[%clk 0:01:49.9]} 17... hxg5 {[%clk 0:00:59.5]} 18. Qxg5+
{[%clk 0:01:50.8]} 18... Kh8 {[%clk 0:00:56.8]} 19. Bxf7 {[%clk 0:01:44.9]}
19... Nh7 {[%clk 0:00:56.3]} 20. Qh5 {[%clk 0:01:39.7]} 20... Rg8 {[%clk
0:00:42.3]} 21. Bxg8 {[%clk 0:01:36.6]} 21... Kxg8 {[%clk 0:00:42.9]} 22. Qg6+
{[%clk 0:01:26.1]} 22... Kh8 {[%clk 0:00:41.4]} 23. Qf7 {[%clk 0:01:26.3]} 23...
Qe8 {[%clk 0:00:06.4]} 24. Qxe8+ {[%clk 0:01:21.6]} 24... Bxe8 {[%clk
0:00:06.1]} 25. Rxe7 {[%clk 0:01:21.7]} 25... Bg6 {[%clk 0:00:07]} 26. Rxb7
{[%clk 0:01:20.8]} 26... Bxc2 {[%clk 0:00:05.9]} 27. Rdd7 {[%clk 0:01:20.5]}
27... Re8 {[%clk 0:00:04.9]} 28. f3 {[%clk 0:01:20.3]} 28... Re1+ {[%clk
0:00:03.3]} 29. Kf2 {[%clk 0:01:20.4]} 29... Re8 {[%clk 0:00:04.2]} 30. Rxa7
{[%clk 0:01:20.3]} 30... Bg6 {[%clk 0:00:04.4]} 31. Rd6 {[%clk 0:01:15.4]} 31...
Bc2 {[%clk 0:00:02.9]} 32. Rxc6 {[%clk 0:01:15.1]} 32... Ng5 {[%clk 0:00:01.8]}
33. Nd5 {[%clk 0:01:14.7]} 1-0

[Event "Late-Titled-Tuesday-Blitz-February-06-2024"]
[Site "Chess.com"]
[Date "2024.02.06"]
[Round "11"]
[White "DeArron_Fox"]
[Black "falzehope0"]
[Result "1-0"]
[WhiteElo "2503"]
[BlackElo "2365"]
[TimeControl "180+1"]
[EndTime "16:03:44 PST"]
[Termination "DeArron_Fox won by resignation"]

1. d4 {[%clk 0:03:00.9]} 1... e6 {[%clk 0:02:58.7]} 2. c4 {[%clk 0:03:01.5]}
2... d5 {[%clk 0:02:58.6]} 3. Nc3 {[%clk 0:03:00.8]} 3... f5 {[%clk 0:02:58.2]}
4. Nf3 {[%clk 0:02:59.7]} 4... c6 {[%clk 0:02:57.8]} 5. Ne5 {[%clk 0:02:56.7]}
5... Nf6 {[%clk 0:02:54.4]} 6. e3 {[%clk 0:02:56.2]} 6... Bd6 {[%clk 0:02:52.9]}
7. f4 {[%clk 0:02:56.6]} 7... O-O {[%clk 0:02:52.7]} 8. Be2 {[%clk 0:02:56.2]}
8... Nbd7 {[%clk 0:02:51.2]} 9. O-O {[%clk 0:02:55.8]} 9... dxc4 {[%clk
0:02:49.3]} 10. Nxc4 {[%clk 0:02:42.9]} 10... Bc7 {[%clk 0:02:48.8]} 11. b3
{[%clk 0:02:40.4]} 11... Nd5 {[%clk 0:02:45.2]} 12. Qd2 {[%clk 0:02:22.7]} 12...
N7f6 {[%clk 0:02:35.5]} 13. Bf3 {[%clk 0:02:15.7]} 13... Re8 {[%clk 0:02:33.9]}
14. a3 {[%clk 0:01:58.7]} 14... a5 {[%clk 0:02:22.7]} 15. a4 {[%clk 0:01:31.5]}
15... Nb4 {[%clk 0:02:16]} 16. Ba3 {[%clk 0:01:29]} 16... Nfd5 {[%clk
0:02:15.1]} 17. Nxd5 {[%clk 0:01:16.6]} 17... Nxd5 {[%clk 0:02:13.4]} 18. Ne5
{[%clk 0:00:58.2]} 18... Bd7 {[%clk 0:01:55.7]} 19. e4 {[%clk 0:00:56.4]} 19...
fxe4 {[%clk 0:01:51.6]} 20. Bxe4 {[%clk 0:00:57.3]} 20... Nf6 {[%clk 0:01:44.9]}
21. Bc2 {[%clk 0:00:41]} 21... Qc8 {[%clk 0:01:39.3]} 22. Qd3 {[%clk 0:00:35.4]}
22... Qd8 {[%clk 0:01:31.9]} 23. Rf3 {[%clk 0:00:29.9]} 23... Bc8 {[%clk
0:01:27.2]} 24. Rh3 {[%clk 0:00:27.7]} 24... Bb6 {[%clk 0:01:17.3]} 25. Rd1
{[%clk 0:00:25.2]} 25... Qd5 {[%clk 0:00:50.1]} 26. Qxh7+ {[%clk 0:00:22.4]}
26... Nxh7 {[%clk 0:00:36.7]} 27. Bxh7+ {[%clk 0:00:23.3]} 1-0